fUST/lending_fUST_20250508
["ID","MTS","AMOUNT","RATE_DAILY","PERIOD"]
[360239659,1746649832654,-500.0,0.00012894,2]
[360239660,1746649832665,-500.0,0.00012894,2]
[360239661,1746649832676,-500.0,0.00012894,2]
[360239662,1746649832686,-500.0,0.00012894,2]
[360239663,1746649832697,-500.0,0.00012894,2]
[360239664,1746649832709,-500.0,0.00012894,2]
[360239665,1746649832719,-500.0,0.00012894,2]
[360239666,1746649832730,-500.0,0.00012894,2]
[360239667,1746649832740,-500.0,0.00012894,2]
[360239668,1746649832750,-500.0,0.00012894,2]
[360239669,1746649832760,-345.15541695,0.00012894,2]
[360239670,1746649832770,-500.0,0.00012894,2]
[360239671,1746649832780,-500.0,0.00012894,2]
[360239672,1746649832791,-500.0,0.00012894,2]
[360239673,1746649832800,-500.0,0.00012894,2]
[360239674,1746649832812,-500.0,0.00012894,2]
[360239675,1746649832822,-500.0,0.00012894,2]
[360239676,1746649832831,-500.0,0.00012894,2]
[360239677,1746649832841,-500.0,0.00012894,2]
[360239678,1746649832851,-500.0,0.00012894,2]
[360239679,1746649832861,-500.0,0.00012894,2]
[360239680,1746649832872,-500.0,0.00012894,2]
[360239681,1746649832882,-500.0,0.00012894,2]
[360239682,1746649832892,-500.0,0.00012894,2]
[360239683,1746649832902,-500.0,0.00012894,2]
[360239684,1746649832913,-182.82803007,0.00012894,2]
[360239685,1746649832923,-500.0,0.00012894,2]
[360239686,1746649832932,-500.0,0.00012894,2]
[360239687,1746649832942,-500.0,0.00012894,2]
[360239688,1746649832951,-500.0,0.00012894,2]
[360239689,1746649832962,-500.0,0.00012894,2]
[360239690,1746649832972,-500.0,0.00012894,2]
[360239691,1746649832982,-500.0,0.00012894,2]
[360239692,1746649832992,-500.0,0.00012894,2]
[360239693,1746649833001,-500.0,0.00012894,2]
[360239694,1746649833011,-500.0,0.00012894,2]
[360239695,1746649833021,-500.0,0.00012894,2]
[360239696,1746649833032,-406.5165694,0.00012894,2]
[360239819,1746651031693,-300.0,0.00012893,2]
[360239821,1746651031705,-93.4834306,0.00012894,2]
[360239823,1746651031715,-500.0,0.00012894,2]
[360239825,1746651031725,-500.0,0.00012894,2]
[360239827,1746651031735,-500.0,0.00012894,2]
[360239829,1746651031745,-500.0,0.00012894,2]
[360239831,1746651031755,-500.0,0.00012894,2]
[360239833,1746651031764,-500.0,0.00012894,2]
[360239835,1746651031774,-500.0,0.00012894,2]
[360239837,1746651031785,-500.0,0.00012894,2]
[360239839,1746651031796,-500.0,0.00012894,2]
[360239841,1746651031806,-500.0,0.00012894,2]
[360239843,1746651031816,-500.0,0.00012894,2]
[360239845,1746651031826,-500.0,0.00012894,2]
[360239847,1746651031836,-500.0,0.00012894,2]
[360239849,1746651031846,-500.0,0.00012894,2]
[360239851,1746651031856,-500.0,0.00012894,2]
[360239853,1746651031866,-500.0,0.00012894,2]
[360239855,1746651031877,-500.0,0.00012894,2]
[360239857,1746651031888,-500.0,0.00012894,2]
[360239859,1746651031898,-550.0,0.00012894,2]
[360239861,1746651031912,-500.0,0.00012894,2]
[360239863,1746651031922,-500.0,0.00012894,2]
[360239865,1746651031931,-500.0,0.00012894,2]
[360239867,1746651031940,-500.0,0.00012894,2]
[360239869,1746651031951,-500.0,0.00012894,2]
[360239871,1746651031961,-500.0,0.00012894,2]
[360239873,1746651031971,-1402.27647287,0.00013118,2]
[360239874,1746651031982,-541.76833564,0.000132,2]
[360239876,1746651031992,-352.40354173,0.00013217,2]
[360239878,1746651032002,-10788.54375802,0.00013218,2]
[360239880,1746651032015,-1586.11405308,0.00013218,2]
[360239882,1746651032026,-2821.55730737,0.00013218,2]
[360239885,1746651032038,-1237.61302906,0.00013218,2]
[360239887,1746651032055,-937.66206399,0.00013218,2]
[360239889,1746651032067,-1514.96609989,0.00013218,2]
[360239920,1746651037743,-624.20491612,0.00013218,2]
[360240379,1746651873405,1502.5,0.0001201,2]
[360240380,1746652048432,5177.5,0.00011906,2]
[360240381,1746652048463,34017.3866717,0.00011906,2]
[360240387,1746652231818,-433.41466852,0.00012132,2]
[360240389,1746652231828,-300.0,0.00012227,2]
[360240391,1746652231838,-500.0,0.00012228,2]
[360240392,1746652231848,-375.0,0.00012228,2]
[360240394,1746652231859,-399.20890623,0.00012228,2]
[360240395,1746652231872,-100.79109377,0.00012228,2]
[360240396,1746652231882,-500.0,0.00012228,2]
[360240397,1746652231892,-357.82803007,0.00012228,2]
[360240398,1746652231902,-500.0,0.00012228,2]
[360240400,1746652231912,-500.0,0.00012228,2]
[360240401,1746652231922,-500.0,0.00012228,2]
[360240403,1746652231932,-500.0,0.00012228,2]
[360240405,1746652231941,-500.0,0.00012228,2]
[360240407,1746652231952,-500.0,0.00012228,2]
[360240409,1746652231961,-500.0,0.00012228,2]
[360240411,1746652231971,-500.0,0.00012228,2]
[360240413,1746652231980,-500.0,0.00012228,2]
[360240415,1746652231989,-500.0,0.00012228,2]
[360240417,1746652231999,-248.77485098,0.00012228,2]
[360240419,1746652232009,-500.0,0.00012228,2]
[360240421,1746652232018,-236.08829059,0.00012228,2]
[360240422,1746652232029,-500.0,0.00012228,2]
[360240424,1746652232040,-500.0,0.00012228,2]
[360240427,1746652232051,-500.0,0.00012228,2]
[360240428,1746652232060,-500.0,0.00012228,2]
[360240430,1746652232070,-500.0,0.00012228,2]
[360240433,1746652232080,-406.12305836,0.00012228,2]
[360240434,1746652232089,-500.0,0.00012228,2]
[360240436,1746652232099,-31931.77095822,0.00012229,2]
[360240457,1746652232298,-15709.48957514,0.00012229,2]
[360240459,1746652232308,-1905.2106723,0.00012232,2]
[360240461,1746652232317,-433.41466851,0.00012404,2]
[360240463,1746652232328,-433.41466851,0.00012675,2]
[360240465,1746652232524,-433.41466851,0.00012947,2]
[360240466,1746652232535,-34799.88041403,0.00013118,2]
[360241014,1746652245942,-19033.62856024,0.00013118,2]
[360241015,1746652245952,-433.41466851,0.00013218,2]
[360241016,1746652245962,-1000.0,0.0001325,2]
[360241017,1746652245971,-18423.4,0.00013273,2]
[360241018,1746652245982,-151.0,0.000133,2]
[360241019,1746652245992,-151.0,0.000133,2]
[360241020,1746652246001,-151.0,0.000133,2]
[360241021,1746652246011,-158920.58757653,0.00013318,2]
[360241024,1746652292546,5999.999999,0.00012,2]
[360241034,1746652374858,10000.0,0.00011891,2]
[360241409,1746652911471,13002.75615589,0.00011681,2]
[360241410,1746652911502,11897.24384411,0.00011681,2]
[360241463,1746653432041,-1448.85076914,0.00012118,2]
[360241464,1746653432052,-151.0,0.00012212,2]
[360241465,1746653432063,-300.0,0.00012213,2]
[360241466,1746653432073,-300.0,0.00012213,2]
[360241467,1746653432083,-1200.0,0.00012213,2]
[360241468,1746653432092,-300.0,0.00012215,2]
[360241469,1746653432102,-17392.07106678,0.00012216,2]
[360241470,1746653432112,-500.0,0.00012219,2]
[360241471,1746653432122,-160.737373,0.00012219,2]
[360241472,1746653432132,-646.650356,0.00012219,2]
[360241473,1746653432142,-646.650356,0.00012219,2]
[360241474,1746653432152,-151.0,0.00012219,2]
[360241475,1746653432162,-1448.85076913,0.00012362,2]
[360241477,1746653432172,-500.0,0.00012493,2]
[360241479,1746653432182,-1448.85076913,0.00012606,2]
[360241481,1746653432192,-500.0,0.00012767,2]
[360241483,1746653432202,-158.5780277,0.000128,2]
[360241485,1746653432212,-1448.85076913,0.0001285,2]
[360241487,1746653432222,-2168.50779442,0.000129,2]
[360241489,1746653432232,-177.0,0.00013,10]
[360241491,1746653432242,-646.650356,0.00013018,2]
[360241493,1746653432252,-646.650356,0.00013018,2]
[360241495,1746653432261,-151.0,0.00013018,2]
[360241497,1746653432271,-85621.09906269,0.00013018,2]
[360241498,1746653432281,-545.17614188,0.00013028,2]
[360241499,1746653432291,-500.0,0.00013041,2]
[360241500,1746653432301,-1448.85076913,0.00013094,2]
[360241501,1746653432311,-8065.14372144,0.00013185,2]
[360241502,1746653432320,-10333.47097305,0.00013185,2]
[360241503,1746653432330,-646.650356,0.00013185,2]
[360241504,1746653432340,-646.650356,0.00013185,2]
[360241505,1746653432350,-151.0,0.00013185,2]
[360241506,1746653432360,-152.0,0.00013258,2]
[360241507,1746653432371,-151.0,0.000133,2]
[360241508,1746653432380,-500.0,0.00013315,2]
[360241509,1746653432391,-196136.30390586,0.00013318,2]
[360241510,1746653432412,-3891.46903076,0.00013318,2]
[360241511,1746653432424,-1600.0,0.00013318,2]
[360241512,1746653432436,-5016.62019881,0.00013318,2]
[360241523,1746653437996,-6873.75571344,0.00013318,2]
[360241524,1746653438054,-608.5,0.00013318,2]
[360242325,1746654554737,10000.0,0.00011896,2]
[360242436,1746654632776,-203.0540102,0.00012011,2]
[360242437,1746654632787,-232.46383958,0.00012797,2]
[360242439,1746654632797,-232.46383954,0.00012877,2]
[360242441,1746654632807,-300.0,0.00012894,2]
[360242443,1746654632817,-175.1904732,0.00012895,2]
[360242445,1746654632827,-639.12858674,0.00012895,2]
[360242447,1746654632837,-243.13864786,0.00012895,2]
[360242449,1746654632846,-300.0,0.00012895,2]
[360242451,1746654632856,-300.0,0.00012895,2]
[360242453,1746654632866,-300.0,0.00012895,2]
[360242455,1746654632875,-300.0,0.00012895,2]
[360242457,1746654632885,-1200.0,0.00012895,2]
[360242459,1746654632895,-46512.47295467,0.00012896,2]
[360242461,1746654632904,-1897.44432017,0.000129,2]
[360242463,1746654632914,-207.4,0.00012905,2]
[360242465,1746654632923,-151.0,0.00012905,2]
[360242467,1746654632932,-232.46383954,0.00012958,2]
[360242469,1746654632942,-652.20111982,0.00012991,2]
[360242471,1746654632951,-232.46383954,0.00013038,2]
[360242473,1746654632960,-1000.0,0.00013085,2]
[360242475,1746654632969,-232.46383954,0.00013118,2]
[360242477,1746654632979,-264295.10538896,0.00013185,2]
[360242479,1746654632989,-151.0,0.00013218,2]
[360242481,1746654632998,-452.65525,0.00013218,2]
[360242483,1746654633008,-452.65525,0.00013218,2]
[360242485,1746654633018,-250.0,0.00013218,2]
[360242487,1746654633027,-59476.33976369,0.00013218,2]
[360242489,1746654633036,-151.0,0.0001331,2]
[360242491,1746654633046,-179.89467565,0.0001331,2]
[360242493,1746654633056,-5381.93191463,0.00013314,2]
[360242495,1746654633066,-226594.6401901,0.00013318,2]
[360242570,1746654638232,-500.0,0.00012894,2]
[360242571,1746654638243,-416.530539,0.00012894,2]
[360242572,1746654638252,-500.0,0.00012894,2]
[360242573,1746654638262,-500.0,0.00012894,2]
[360242574,1746654638272,-500.0,0.00012894,2]
[360242575,1746654638282,-500.0,0.00012894,2]
[360242576,1746654638291,-75.6782292,0.00012894,2]
[360242586,1746654640828,-529.72332096,0.00012894,2]
[360242587,1746654640838,-500.0,0.00012894,2]
[360242588,1746654640848,-453.56077892,0.00012894,2]
[360242589,1746654640857,-11.08794868,0.00012894,2]
[360242612,1746654646672,-594.31360148,0.00012894,2]
[360242613,1746654646683,-500.0,0.00012894,2]
[360242614,1746654646693,-500.0,0.00012894,2]
[360242615,1746654646703,-605.40155016,0.00012894,2]
[360242616,1746654646713,-500.0,0.00012894,2]
[360242617,1746654646722,-500.0,0.00012894,2]
[360242618,1746654646732,-605.40155016,0.00012894,2]
[360242619,1746654646742,-500.0,0.00012894,2]
[360242620,1746654646751,-147.41477813,0.00012894,2]
[360242634,1746654984944,24900.0,0.00011934,2]
[360242637,1746655366897,49416.5856936,0.00011849,2]
[360242665,1746655765014,473.9055078,0.0001173,2]
[360242666,1746655770656,10000.0,0.00011637,2]
[360242667,1746655789017,250.0,0.00011474,2]
[360242699,1746655832499,-1000.0,0.00012132,2]
[360242702,1746655832509,-500.0,0.00012232,2]
[360242703,1746655832519,-300.0,0.00012585,2]
[360242705,1746655832532,-300.0,0.00012585,2]
[360242707,1746655832542,-300.0,0.00012585,2]
[360242709,1746655832552,-1200.0,0.00012585,2]
[360242711,1746655832561,-300.0,0.00012585,2]
[360242713,1746655832571,-500.0,0.00012586,2]
[360242716,1746655832582,-500.0,0.00012586,2]
[360242718,1746655832591,-500.0,0.00012586,2]
[360242720,1746655832601,-500.0,0.00012586,2]
[360242721,1746655832611,-500.0,0.00012586,2]
[360242723,1746655832620,-500.0,0.00012586,2]
[360242725,1746655832630,-381.28015639,0.00012586,2]
[360242727,1746655832640,-500.0,0.00012586,2]
[360242729,1746655832650,-500.0,0.00012586,2]
[360242730,1746655832660,-500.0,0.00012586,2]
[360242731,1746655832670,-500.0,0.00012586,2]
[360242732,1746655832679,-500.0,0.00012586,2]
[360242733,1746655832689,-500.0,0.00012586,2]
[360242734,1746655832698,-500.0,0.00012586,2]
[360242735,1746655832707,-500.0,0.00012586,2]
[360242736,1746655832717,-500.0,0.00012586,2]
[360242737,1746655832727,-500.0,0.00012586,2]
[360242738,1746655832737,-210.56543414,0.00012586,2]
[360242739,1746655832746,-500.0,0.00012586,2]
[360242740,1746655832756,-500.0,0.00012586,2]
[360242741,1746655832765,-500.0,0.00012586,2]
[360242742,1746655832775,-616.56947858,0.00012586,2]
[360242743,1746655832784,-616.56947858,0.00012586,2]
[360242744,1746655832794,-616.56947858,0.00012586,2]
[360242745,1746655832803,-616.56947858,0.00012586,2]
[360242746,1746655832812,-616.56947858,0.00012586,2]
[360242747,1746655832822,-616.56947858,0.00012586,2]
[360242748,1746655832832,-616.56947858,0.00012586,2]
[360242749,1746655832842,-616.56947858,0.00012586,2]
[360242750,1746655832851,-616.56947858,0.00012586,2]
[360242751,1746655832862,-616.56947858,0.00012586,2]
[360242752,1746655832871,-616.56947858,0.00012586,2]
[360242753,1746655832881,-616.56947858,0.00012586,2]
[360242755,1746655832892,-616.56947858,0.00012586,2]
[360242757,1746655832901,-616.56947858,0.00012586,2]
[360242759,1746655832910,-616.56947858,0.00012586,2]
[360242760,1746655832921,-616.56947858,0.00012586,2]
[360242763,1746655832930,-616.56947858,0.00012586,2]
[360242764,1746655832940,-616.56947858,0.00012586,2]
[360242766,1746655832950,-616.56947858,0.00012586,2]
[360242768,1746655832960,-616.56947858,0.00012586,2]
[360242771,1746655832971,-616.56947858,0.00012586,2]
[360242773,1746655832981,-616.56947858,0.00012586,2]
[360242775,1746655832991,-616.56947858,0.00012586,2]
[360242777,1746655833000,-616.56947858,0.00012586,2]
[360242779,1746655833010,-616.56947858,0.00012586,2]
[360242781,1746655833020,-616.56947858,0.00012586,2]
[360242783,1746655833030,-616.56947858,0.00012586,2]
[360242785,1746655833040,-616.56947858,0.00012586,2]
[360242787,1746655833049,-616.56947858,0.00012586,2]
[360242789,1746655833060,-616.56947858,0.00012586,2]
[360242791,1746655833070,-616.56947858,0.00012586,2]
[360242793,1746655833080,-616.56947858,0.00012586,2]
[360242795,1746655833090,-616.56947858,0.00012586,2]
[360242797,1746655833100,-616.56947858,0.00012586,2]
[360242799,1746655833110,-616.56947858,0.00012586,2]
[360242801,1746655833120,-601.15524161,0.00012586,2]
[360242803,1746655833131,-601.15524161,0.00012586,2]
[360242805,1746655833141,-601.15524161,0.00012586,2]
[360242807,1746655833152,-601.15524161,0.00012586,2]
[360242809,1746655833162,-601.15524161,0.00012586,2]
[360242811,1746655833173,-601.15524161,0.00012586,2]
[360242813,1746655833183,-601.15524161,0.00012586,2]
[360242815,1746655833193,-601.15524161,0.00012586,2]
[360242817,1746655833203,-601.15524161,0.00012586,2]
[360242819,1746655833213,-601.15524161,0.00012586,2]
[360242821,1746655833223,-601.15524161,0.00012586,2]
[360242823,1746655833232,-601.15524161,0.00012586,2]
[360242825,1746655833242,-601.15524161,0.00012586,2]
[360242827,1746655833252,-601.15524161,0.00012586,2]
[360242829,1746655833262,-601.15524161,0.00012586,2]
[360242831,1746655833272,-601.15524161,0.00012586,2]
[360242833,1746655833283,-601.15524161,0.00012586,2]
[360242835,1746655833293,-601.15524161,0.00012586,2]
[360242837,1746655833304,-601.15524161,0.00012586,2]
[360242839,1746655833314,-601.15524161,0.00012586,2]
[360242841,1746655833325,-601.15524161,0.00012586,2]
[360242843,1746655833336,-601.15524161,0.00012586,2]
[360242845,1746655833347,-601.15524161,0.00012586,2]
[360242847,1746655833358,-601.15524161,0.00012586,2]
[360242849,1746655833368,-601.15524161,0.00012586,2]
[360242851,1746655833379,-601.15524161,0.00012586,2]
[360242853,1746655833390,-623.01543221,0.00012586,2]
[360242855,1746655833401,-623.01543221,0.00012586,2]
[360242857,1746655833412,-623.01543221,0.00012586,2]
[360242859,1746655833424,-623.01543221,0.00012586,2]
[360242861,1746655833435,-623.01543221,0.00012586,2]
[360242863,1746655833445,-623.01543221,0.00012586,2]
[360242865,1746655833454,-623.01543221,0.00012586,2]
[360242867,1746655833464,-623.01543221,0.00012586,2]
[360242869,1746655833473,-623.01543221,0.00012586,2]
[360242870,1746655833483,-623.01543221,0.00012586,2]
[360242873,1746655833494,-623.01543221,0.00012586,2]
[360242875,1746655833504,-7447.47546229,0.00012588,2]
[360242877,1746655833515,-500.0,0.00012689,2]
[360242878,1746655833528,-500.0,0.00012689,2]
[360242880,1746655833539,-500.0,0.00012689,2]
[360242882,1746655833550,-500.0,0.00012689,2]
[360242884,1746655833560,-500.0,0.00012689,2]
[360242886,1746655833571,-500.0,0.00012689,2]
[360242888,1746655833581,-500.0,0.00012689,2]
[360242890,1746655833591,-7447.47546229,0.00012759,2]
[360242892,1746655833603,-500.0,0.00012876,2]
[360242894,1746655833614,-2535.06923811,0.000129,2]
[360242896,1746655833624,-7447.47546229,0.00012931,2]
[360242898,1746655833635,-580.52725194,0.00012973,2]
[360242900,1746655833645,-7447.47546229,0.00013102,2]
[360242902,1746655833655,-151.0,0.0001321,2]
[360242904,1746655833665,-207.4,0.0001321,2]
[360242906,1746655833676,-24841.80949664,0.00013218,2]
[360243167,1746655838405,-296.52715829,0.00012585,2]
[360243169,1746655838416,-71.31284171,0.00012585,2]
[360243171,1746655838429,-105.50353663,0.00012585,2]
[360243173,1746655838440,-642.66256496,0.00012585,2]
[360243175,1746655838451,-580.52725194,0.00013003,2]
[360243177,1746655838460,-5118.72472574,0.00013218,2]
[360243179,1746655838472,-3670.70435593,0.00013218,2]
[360243182,1746655838484,-20516.45649648,0.00013218,2]
[360243235,1746655840662,-2610.1231816,0.00013218,2]
[360243237,1746655840672,-152.0,0.0001325,2]
[360243238,1746655840683,-224.85,0.00013268,2]
[360243240,1746655840693,-7447.47546229,0.00013273,2]
[360243242,1746655840704,-126420.33582597,0.00013318,2]
[360243521,1746655843545,-2702.39600215,0.00013318,2]
[360243797,1746655846486,-262984.63832644,0.00013318,2]
[360243877,1746656015084,24900.0,0.00011757,2]
[360243881,1746656400390,3857.7549382,0.00011636,2]
[360243882,1746656433131,13248.7129653,0.00011636,2]
[360243889,1746656667218,645.2828204,0.00011555,2]
[360243893,1746656815351,10000.0,0.00011554,2]
[360243922,1746657032529,-250.0,0.00012023,2]
[360243923,1746657032539,-200.20770283,0.00012032,2]
[360243924,1746657032550,-5000.0,0.000123,2]
[360243925,1746657032559,-216.70733426,0.00012477,2]
[360243926,1746657032570,-1200.0,0.00012482,2]
[360243927,1746657032580,-207.56901081,0.00012483,2]
[360243928,1746657032590,-500.0,0.00012483,2]
[360243929,1746657032600,-240.49750281,0.00012483,2]
[360243930,1746657032610,-300.0,0.00012483,2]
[360243931,1746657032619,-300.0,0.00012483,2]
[360243933,1746657032629,-300.0,0.00012483,2]
[360243935,1746657032639,-300.0,0.00012483,2]
[360243936,1746657032648,-320.0,0.00012484,2]
[360243937,1746657032658,-15734.17874356,0.00012484,2]
[360243938,1746657032668,-513.45124067,0.00012484,2]
[360243939,1746657032678,-500.0,0.00012484,2]
[360243940,1746657032688,-383.01883177,0.00012484,2]
[360243942,1746657032698,-500.0,0.00012484,2]
[360243943,1746657032708,-513.45124067,0.00012484,2]
[360243944,1746657032717,-500.0,0.00012484,2]
[360243945,1746657032727,-500.0,0.00012484,2]
[360243946,1746657032738,-513.45124067,0.00012484,2]
[360243947,1746657032747,-500.0,0.00012484,2]
[360243948,1746657032757,-513.45124067,0.00012484,2]
[360243949,1746657032766,-513.45124067,0.00012484,2]
[360243950,1746657032775,-513.45124067,0.00012484,2]
[360243951,1746657032785,-513.45124067,0.00012484,2]
[360243952,1746657032794,-513.45124067,0.00012484,2]
[360243953,1746657032804,-513.45124067,0.00012484,2]
[360243954,1746657032814,-513.45124067,0.00012484,2]
[360243955,1746657032824,-513.45124067,0.00012484,2]
[360243956,1746657032834,-513.45124067,0.00012484,2]
[360243957,1746657032843,-513.45124067,0.00012484,2]
[360243958,1746657032853,-513.45124067,0.00012484,2]
[360243959,1746657032863,-513.45124067,0.00012484,2]
[360243960,1746657032873,-513.45124067,0.00012484,2]
[360243961,1746657032884,-513.45124067,0.00012484,2]
[360243962,1746657032896,-513.45124067,0.00012484,2]
[360243963,1746657032905,-513.45124067,0.00012484,2]
[360243964,1746657032915,-513.45124067,0.00012484,2]
[360243965,1746657032924,-173.72644327,0.00012484,2]
[360243966,1746657032946,-339.7247974,0.00012484,2]
[360243967,1746657032956,-513.45124067,0.00012484,2]
[360243968,1746657032967,-513.45124067,0.00012484,2]
[360243969,1746657032978,-513.45124067,0.00012484,2]
[360243970,1746657032988,-513.45124067,0.00012484,2]
[360243971,1746657032998,-513.45124067,0.00012484,2]
[360243972,1746657033009,-513.45124067,0.00012484,2]
[360243973,1746657033019,-513.45124067,0.00012484,2]
[360243974,1746657033028,-513.45124067,0.00012484,2]
[360243975,1746657033038,-513.45124067,0.00012484,2]
[360243976,1746657033048,-513.45124067,0.00012484,2]
[360243977,1746657033058,-513.45124067,0.00012484,2]
[360243978,1746657033068,-513.45124067,0.00012484,2]
[360243979,1746657033077,-513.45124067,0.00012484,2]
[360243980,1746657033087,-505.70103327,0.00012484,2]
[360243981,1746657033097,-505.70103327,0.00012484,2]
[360243982,1746657033106,-505.70103327,0.00012484,2]
[360243983,1746657033116,-505.70103327,0.00012484,2]
[360243984,1746657033126,-505.70103327,0.00012484,2]
[360243985,1746657033136,-505.70103327,0.00012484,2]
[360243986,1746657033146,-505.70103327,0.00012484,2]
[360243987,1746657033156,-505.70103327,0.00012484,2]
[360243988,1746657033165,-505.70103327,0.00012484,2]
[360243989,1746657033175,-505.70103327,0.00012484,2]
[360243990,1746657033184,-505.70103327,0.00012484,2]
[360243991,1746657033194,-505.70103327,0.00012484,2]
[360243992,1746657033204,-318.18111879,0.00012484,2]
[360243993,1746657033216,-187.51991448,0.00012484,2]
[360243994,1746657033226,-505.70103327,0.00012484,2]
[360243995,1746657033235,-505.70103327,0.00012484,2]
[360243996,1746657033245,-505.70103327,0.00012484,2]
[360243997,1746657033255,-505.70103327,0.00012484,2]
[360243998,1746657033265,-505.70103327,0.00012484,2]
[360243999,1746657033275,-505.70103327,0.00012484,2]
[360244000,1746657033285,-505.70103327,0.00012484,2]
[360244001,1746657033295,-350.99852305,0.00012484,2]
[360244002,1746657033308,-154.70251022,0.00012484,2]
[360244003,1746657033317,-505.70103327,0.00012484,2]
[360244004,1746657033327,-398.31810861,0.00012484,2]
[360244048,1746657038670,-922.57245154,0.00012485,2]
[360244050,1746657038680,-151.0,0.0001257,2]
[360244052,1746657038690,-207.4,0.00012651,2]
[360244054,1746657038699,-713.82569525,0.000128,2]
[360244064,1746657038790,-7850.48470176,0.000128,2]
[360244066,1746657038803,-1918.93198644,0.000128,2]
[360244068,1746657038814,-15257.84825598,0.000128,2]
[360244171,1746657041082,-9058.7897746,0.000128,2]
[360244172,1746657041093,-2592.60135289,0.000129,2]
[360244174,1746657041103,-216.70733425,0.00013273,2]
[360244176,1746657041114,-151.0,0.000133,2]
[360244177,1746657041123,-151.0,0.000133,2]
[360244180,1746657041133,-354.53509805,0.0001331,2]
[360244183,1746657041143,-2361.23740289,0.00013318,2]
[360244186,1746657041156,-14004.46477227,0.00013318,2]
[360244189,1746657041167,-842.42856795,0.00013318,2]
[360244365,1746657046656,-3227.60610924,0.00013318,2]
[360244380,1746657046805,-1371.31536252,0.00013318,2]
[360244382,1746657046818,-1514.3573757,0.00013318,2]
[360244427,1746657828503,10000.0,0.00011713,2]
[360244428,1746657939623,21137.2955002,0.00022,30]
[360244480,1746658231762,-428.705296,0.0001203,2]
[360244482,1746658231772,-250.0,0.00012329,2]
[360244484,1746658231782,-300.0,0.00012471,2]
[360244486,1746658231794,-217.90472981,0.00012472,2]
[360244488,1746658231803,-518.34825197,0.00012472,2]
[360244489,1746658231812,-324.85447507,0.00012472,2]
[360244491,1746658231822,-500.0,0.00012472,2]
[360244493,1746658231832,-431.6655446,0.00012472,2]
[360244496,1746658231842,-500.0,0.00012472,2]
[360244499,1746658231851,-500.0,0.00012472,2]
[360244502,1746658231861,-500.0,0.00012472,2]
[360244504,1746658231874,-500.0,0.00012472,2]
[360244505,1746658231884,-500.0,0.00012472,2]
[360244507,1746658231893,-500.0,0.00012472,2]
[360244509,1746658231903,-500.0,0.00012472,2]
[360244511,1746658231912,-500.0,0.00012472,2]
[360244513,1746658231922,-500.0,0.00012472,2]
[360244515,1746658231932,-63.82096857,0.00012472,2]
[360244517,1746658231944,-436.17903143,0.00012472,2]
[360244519,1746658231954,-500.0,0.00012472,2]
[360244520,1746658231963,-500.0,0.00012472,2]
[360244522,1746658231972,-500.0,0.00012472,2]
[360244524,1746658231982,-500.0,0.00012472,2]
[360244526,1746658231992,-500.0,0.00012472,2]
[360244528,1746658232001,-500.0,0.00012472,2]
[360244530,1746658232011,-500.0,0.00012472,2]
[360244531,1746658232021,-500.0,0.00012472,2]
[360244533,1746658232031,-500.0,0.00012472,2]
[360244535,1746658232039,-500.0,0.00012472,2]
[360244537,1746658232049,-500.0,0.00012472,2]
[360244538,1746658232059,-500.0,0.00012472,2]
[360244540,1746658232068,-500.0,0.00012472,2]
[360244542,1746658232078,-500.0,0.00012472,2]
[360244544,1746658232088,-500.0,0.00012472,2]
[360244546,1746658232098,-500.0,0.00012472,2]
[360244547,1746658232107,-500.0,0.00012472,2]
[360244549,1746658232117,-500.0,0.00012472,2]
[360244551,1746658232126,-500.0,0.00012472,2]
[360244553,1746658232136,-645.5595899,0.00012472,2]